Cogmind - Beta 16 @@@ ROGUE MODE // 2025.12.22 @ 00:58:43 Player: LYMPH NODE JONES Result: Destroyed self with Rocket Launcher Performance ------------- Evolutions (0) 0 Regions Visited (2) 400 Robots Destroyed (9) 45 Value Destroyed (367) 367 Prototype IDs (1) 20 Alien Tech Used (0) 0 Bonus (0) 0 TOTAL SCORE: 832 Bonus ------- None Cogmind --------- Core Integrity 0/250 Matter 218/300 Energy 100/100 System Corruption 0% Temperature Cool (0) Movement Core (150) Ox2 Location -10/Subcaves Parts ------- > --- POWER (1) -------- (None) > --- PROPULSION (2) --- (None) > --- UTILITY (2) ------ Small Storage Unit > --- WEAPON (2) ------- Rocket Launcher > --- INVENTORY (8) ---- Light Ion Engine Light Treads Light Treads Assault Rifle Peak State ------------ > --- POWER ------------ Ion Engine > --- PROPULSION ------- Aluminum Leg Aluminum Leg > --- UTILITY ---------- Heat Sink Small Storage Unit > --- WEAPON ----------- EM Pulse Gun Advanced Beam Cannon > --- INVENTORY -------- Light Ion Engine Light Treads Light Treads Assault Rifle Rocket Launcher Rocket Launcher [Rating: 9] Favorites ----------- Power Ion Engine Engine Ion Engine Propulsion Aluminum Leg Leg Aluminum Leg Utility Small Storage Unit Device Heat Sink Storage Small Storage Unit Weapon Advanced Beam Cannon Energy Gun EM Pulse Gun Energy Cannon Advanced Beam Cannon Ballistic Gun Assault Rifle Launcher Rocket Launcher Build | -11 -10 -10 ------- Run | Yrd Mat Sub Slots Evolved . | . . . Power . | . . . Propulsion . | . . . Utility . | . . . Weapon . | . . . Parts Attached 10 | 6 2 2 Power 1 | 1 . . Engine 1 | 1 . . Core . | . . . Reactor . | . . . Propulsion 2 | 2 . . Treads . | . . . Leg 2 | 2 . . Wheel . | . . . Hover . | . . . Flight . | . . . Utility 2 | 1 1 . Device 1 | . 1 . Storage 1 | 1 . . Processor . | . . . Hackware . | . . . Protection . | . . . Artifact . | . . . Weapon 5 | 2 1 2 Energy Gun 1 | 1 . . Energy Cannon 1 | . 1 . Ballistic Gun 1 | 1 . . Ballistic Cannon . | . . . Launcher 2 | . . 2 Special Weapon . | . . . Impact Weapon . | . . . Slashing Weapon . | . . . Piercing Weapon . | . . . Special Melee Weapon . | . . . Unidentified Prototypes 1 | . 1 . Parts Lost 7 | . 1 6 Power 1 | . . 1 Propulsion 2 | . . 2 Utility 1 | . . 1 Weapon 3 | . 1 2 Highest Loss Streak 4 | . 1 4 To Critical Strikes 1 | . . 1 Average Backups 5 | 2 5 5 Power . | . 1 1 Propulsion 1 | 1 2 2 Utility . | . . . Weapon 2 | . 2 2 Tool/Special . | . . . Unused Backups 3 | . . 3 Power 1 | . . 1 Propulsion 2 | . . 2 Utility . | . . . Weapon . | . . . Tool/Special . | . . . Average Slot Usage (%) 83 | . 91 64 Engine 13 | . 14 13 Leg 25 | . 28 18 Device 6 | . 8 4 Storage 14 | . 14 14 Energy Gun 8 | . 12 . Energy Cannon 13 | . 13 12 Peak Build Rating 9 | 6 9 8 Average Rating 7 | 4 8 6 On Entrance 4 | . 6 8 Avg Prop Armor Cover (%) . | . . . Naked Turns . | . . . Heaviest Build 17 | 14 17 15 Greatest Support 20 | 20 20 20 Greatest Overweight (x) 2 | . . 2 Average Overweight (x) . | . . . Largest Inventory Capacity 8 | 8 8 8 Average Capacity 7 | 6 8 8 Most Carried 7 | 5 7 6 Average Carried 5 | 3 5 5 Final Capacity 8 | 8 8 8 Final Carried 6 | 3 6 4 Class Distribution -------------------- 100% | Mutant Dominant Class ---------------- Mutant | -10/Materials Mutant | -10/Subcaves Resources | -11 -10 -10 ----------- Run | Yrd Mat Sub Matter Collected 280 | 183 97 . Remotely . | . . . Salvage Created 390 | . 330 60 Parts 15 | . 15 . Haulers Intercepted . | . . . Recyclers Shooed . | . . . Parts Field Recycled . | . . . Retrieved Matter . | . . . Parts Self-Destructed . | . . . Prevented . | . . . Parts Restored . | . . . Kills | -11 -10 -10 ------- Run | Yrd Mat Sub Combat Hostiles Destroyed 9 | . 7 2 Cannons 8 | . 7 1 AOE 1 | . . 1 Classes Destroyed 2 | . 1 1 Grunt 7 | . 7 . Subdweller 2 | . . 2 Best Kill Streak 4 | . 4 1 Combat Bots Only 4 | . 4 1 Max Kills in Single Turn 1 | . 1 1 Gunslinging . | . . . Exploded 1 | . . 1 Melee . | . . . Uniques/NPCs Destroyed . | . . . Combat | -11 -10 -10 -------- Run | Yrd Mat Sub Hostile Shots Fired 48 | . 24 24 Missed 7 | . 4 3 Hits 41 | . 20 21 Projectile 41 | . 20 21 Critical Strikes 2 | . . 2 Damage Taken 844 | . 237 607 Core 255 | . 89 166 Absorbed by Shields . | . . . Core Remaining (%) 100 | 100 . . Volleys Fired 99 | . 16 83 Largest 2 | . 2 2 Hottest 108 | . 108 68 Shots Fired 115 | . 30 85 Gun 14 | . 14 . Cannon 94 | . 16 78 Launcher 7 | . . 7 Special . | . . . Kinetic . | . . . Thermal 94 | . 16 78 Explosive 7 | . . 7 Electromagnetic 14 | . 14 . Robot Hit Streak 9 | . 4 9 Robot Miss Streak 2 | . 2 2 Penetration Max . | . . . Secondary Targets . | . . . Shots Hit Robots 37 | . 19 18 Core Hits 17 | . 11 6 Critical Kills . | . . . Critical Parts Destroyed . | . . . Critical Strikes . | . . . Melee Attacks . | . . . Impact . | . . . Slashing . | . . . Piercing . | . . . Sneak Attacks . | . . . Combat Hostiles . | . . . Follow-up Attacks . | . . . Damage Inflicted 904 | . 323 581 Guns 93 | . 93 . Cannons 511 | . 224 287 Explosions 294 | . . 294 Melee . | . . . Ramming 6 | . 6 . Kinetic . | . . . Thermal 511 | . 224 287 Explosive 294 | . . 294 Electromagnetic 93 | . 93 . Impact . | . . . Slashing . | . . . Piercing . | . . . Highest Corruption . | . . . Average Corruption . | . . . Corruption Purged . | . . . Corruption Blocked . | . . . Overload Shots . | . . . Overflow Damage 44 | . . 44 Projectiles . | . . . Explosions 44 | . . 44 Melee . | . . . Knockbacks . | . . . Impact . | . . . Kinetic . | . . . Secondary . | . . . Self-Inflicted Damage 130 | . . 130 Shots 4 | . . 4 Rammed . | . . . Targets Rammed 3 | . 3 . Kicked 3 | . 3 . Crushed . | . . . Highest Temperature 201 | . 201 . Average Temperature 63 | . 63 . Received Heat Transfer 201 | . 138 63 Siege Activations . | . . . Martial Activations . | . . . Shielding Activations . | . . . Robots Disrupted . | . . . Combat Hostiles . | . . . Robots Corrupted . | . . . Combat Hostiles . | . . . Parts Fried . | . . . Impact Corruptions . | . . . Robots Melted . | . . . Combat Hostiles . | . . . Parts Melted 1 | . . 1 Heat Transferred 925 | . 407 518 Parts Sabotaged . | . . . Parts Stolen . | . . . Parts Stripped . | . . . Power Chain Reactions 1 | . 1 . Alert | -11 -10 -10 ------- Run | Yrd Mat Sub Maximum Alert Level . | . . . Low Security (%) 100 | 100 100 . Level 1 . | . . . Level 2 . | . . . Level 3 . | . . . Level 4 . | . . . Level 5 . | . . . High Security . | . . . Max Security . | . . . Peak Influence 83 | . 83 . Initial . | . . . Average 25 | . 30 . Influence Increases 198 | . 198 . Destroy 0b10 Robot/C 140 | . 140 . Destroy Leader 40 | . 40 . Disable Machine 15 | . 15 . Destroy Structure 3 | . 3 . Influence Decreases 198 | . 164 34 Entered New Map 17 | . . 17 Time Decay 171 | . 154 17 Lost Part 10 | . 10 . Squads Dispatched 1 | . 1 . Investigation 1 | . 1 . Extermination . | . . . Reinforcement . | . . . Assault . | . . . Garrison . | . . . Intercept . | . . . Searches Triggered . | . . . Construction Impeded . | . . . Haulers Reinforced . | . . . Active Scanning Responses . | . . . Cargo Convoy Interrupts . | . . . Stealth | -11 -10 -10 --------- Run | Yrd Mat Sub Distress Signals . | . . . Communications Jammed . | . . . Distress Signals . | . . . Times Spotted 10 | . 8 2 Peak Tracking Total 4 | . 4 1 Tactical Retreats . | . . . Traps | -11 -10 -10 ------- Run | Yrd Mat Sub Traps Triggered 1 | . 1 . Indirectly . | . . . Trap Hack Attempts . | . . . Triggered . | . . . Disarmed . | . . . Reprogrammed . | . . . Reused . | . . . Traps Extracted . | . . . Installed . | . . . Triggered . | . . . Machines | -11 -10 -10 ---------- Run | Yrd Mat Sub Machines Disabled 1 | . 1 . Max in Single Turn 1 | . 1 . Machines Repaired . | . . . Machines Dismantled . | . . . Machines Sabotaged . | . . . Overloaded Fab Kills . | . . . Hacking | -11 -10 -10 --------- Run | Yrd Mat Sub Machines Accessed . | . . . Terminals . | . . . Fabricators . | . . . Repair Stations . | . . . Recycling Units . | . . . Scanalyzers . | . . . Garrison Access . | . . . Total Hacks . | . . . Successful . | . . . Failed . | . . . Catastrophic . | . . . Database Lockouts . | . . . Manual . | . . . Terminals . | . . . Fabricators . | . . . Repair Stations . | . . . Recycling Units . | . . . Scanalyzers . | . . . Garrison Access . | . . . Terminal Hacks . | . . . Fabricator Hacks . | . . . Repair Station Hacks . | . . . Recycling Unit Hacks . | . . . Scanalyzer . | . . . Garrison Access Hacks . | . . . Unauthorized Hacks . | . . . Terminals . | . . . Fabricators . | . . . Repair Stations . | . . . Recycling Units . | . . . Scanalyzers . | . . . Garrison Access . | . . . Data Cores Recovered . | . . . Used . | . . . Hacking Detections . | . . . Full Trace Events . | . . . Feedback Events . | . . . Feedback Blocked . | . . . Robot Schematics Acquired . | . . . Robots Built . | . . . Authchips . | . . . Time . | . . . Total Robot Build Rating . | . . . Part Schematics Acquired . | . . . Parts Built . | . . . Authchips . | . . . Time . | . . . Total Part Build Rating . | . . . Part Studies Acquired . | . . . Parts Repaired . | . . . Time . | . . . Parts Recycled . | . . . Recycled Matter . | . . . Retrieved Matter . | . . . Retrieved Components . | . . . Parts Scanalyzed . | . . . Part Schematics Acquired . | . . . Parts Damaged . | . . . Bothacking | -11 -10 -10 ------------ Run | Yrd Mat Sub Used RIF Installer . | . . . Robots Hacked . | . . . Non-combat . | . . . Combat . | . . . Robot Hacks Applied . | . . . Relay Couplers Released . | . . . Fabnet Peak Effective % . | . . . Robots Rewired . | . . . Allies Hacked . | . . . Hacks Repelled . | . . . Allies | -11 -10 -10 -------- Run | Yrd Mat Sub Total Allies . | . . . Largest Group . | . . . Highest-Rated Group . | . . . Highest-Rated Ally . | . . . Total Orders . | . . . Ally Attacks . | . . . Total Damage . | . . . Kills . | . . . Allies Corrupted . | . . . Allies Melted . | . . . Intel | -11 -10 -10 ------- Run | Yrd Mat Sub Active Infowar (turns) . | . . . Robot Analysis Total . | . . . Derelict Logs Recovered . | . . . Drone Launches . | . . . Drone Recoveries . | . . . Exploration | -11 -10 -10 ------------- Run | Yrd Mat Sub Turns Passed 914 | 125 549 240 Spaces Moved 513 | 69 388 56 Core 14 | 13 . 1 Treads . | . . . Legs 499 | 56 388 55 Wheels . | . . . Hover . | . . . Flight . | . . . Fastest Speed 50 | 50 120 120 Average Speed 119 | 106 120 128 Slowest Speed 190 | 120 120 190 Overloaded Moves . | . . . Propulsion Burnouts . | . . . Robots Hopped . | . . . Potential Cave-ins . | . . . Cave-ins Triggered . | . . . Exploration Rate (%) 16 | 5 35 10 Regions Visited 2 Branch Regions 1 Pre-discovered Areas . | . . . Known Exits Taken . | . . . Unknown Exits Taken 2 | 1 1 . Scrap Searched . | . . . Spaces Dug . | . . . Terrain Destroyed 40 | . 2 38 Melee . | . . . Projectile . | . . . AOE 40 | . 2 38 Terrain Rammed . | . . . Walls Destroyed . | . . . Machines Disabled . | . . . Actions | -11 -10 -10 --------- Run | Yrd Mat Sub Total 702 | 120 441 141 Wait 65 | 37 28 . Move 511 | 68 387 56 Hop . | . . . Pick Up 13 | 9 4 . Fast Attach . | . . . Attach 10 | 6 2 2 Detach 1 | . 1 . Swap . | . . . Drop . | . . . Fire 99 | . 16 83 Melee . | . . . Ram . | . . . Kick 3 | . 3 . Crush . | . . . Escape Stasis . | . . . Rewire . | . . . Trap . | . . . Miscellaneous . | . . . Route ------- -11/Scrapyard -10/Materials -10/Subcaves History --------- Turn | Location | Event 7 | -11/Scrapyard | Discovered new exit (range 16) 126 | -11/Scrapyard | Entered Materials 308 | -10/Materials | Build established: Mutant 662 | -10/Materials | Discovered new exit (range 11) 675 | -10/Materials | Entered Subcaves 754 | -10/Subcaves | Core integrity fell below 50% 910 | -10/Subcaves | Core integrity fell below 20% 915 | -10/Subcaves | Destroyed self with Rocket Launcher Last Messages --------------- 00663_ Kicked U-05 Engineer. LOCATION=UNKNOWN AMBIENT_HEAT=-10 GOAL=ESCAPE 00747_ Heat Sink destroyed. 00757_ Critical hit (Destroy). 00757_ Aluminum Leg destroyed. 00764_ Destroyed Scrap Shield. 00766_ Sub. Monowheel melted. 00766_ BH-JD9(R) destroyed. 00899_ Adv. Beam Cannon destroyed. [Achievement: There's More Where That Came From] 00902_ Destroyed Sub. Optics. 00903_ Ion Engine destroyed. 00907_ Aluminum Leg destroyed. 00907_ Destroyed Aluminum Leg. 00907_ Rocket Launcher destroyed. [Achievement: Overwhelming] 00907_ Destroyed Rocket Launcher. 00915_ 7L-50R(R) destroyed. Map ----- +----------------------------------------------------+ | ?????????????????????????????????????????????????? | | ?????????????????????????????????????????????????? | | ?????????????????????????????????????????????????? | | ?????????????????????????????????????????????????? | | ?????????????????????????????????????????????????? | | ?????????????????????????????????????????????????? | | ?????????????????????????????????????????????????? | | ?????????????????????????????????????????????????? | | ?????????????????????????????????????????????????? | | ????????????????????????????????#????????????????? | | ???????????????????????????????# ????????????????? | | ????????????????????????????### ????????????????? | | ?????????????????????????? ????????????????? | | ????????????????????????? ???????????????? | | ??????????????????##???? ???????????????? | | ??????????????##### ??? #???????????????? | | ????????????? ???? ##??????????????? | | ????????????? ??? " ##?????????????? | | ???????????? ????#"""" " "#?????????????? | | ???????????? ##?#"""" " "#?????????????? | | ???????????? # ##""" [ ""#?????????????? | | ??????????? """ %! #?###??????????? | | ??????????? ""## ## ##?????????? | | ??????????# #?# " ##????????? | | ????????????# & ### """ #???????? | | ????????????????# @ ## """"" #???????? | | ???????????????# ""##??????????? | | ???????????????# ##???????????? | | ???????????????### ## ## #???????????? | | ?????????????????##### ##;##### ##???????????? | | ????????????????????# #?##?### #??###???????? | | ???????????????????# #?#### ### ##??????? | | ???????????????????# ?# # #??????? | | ???????????????????# ?## ### #??????? | | ???????????????????## ? ??# ###??????? | | ????????????????????### # ???### ###??????? | | ??????????????????????######??????## #??????? | | ??????????????????????????????????# ####### | | ???????????????????????????? ????## | | ?????????????????????????????" ????# | | ?????????????????????????????? ???## ### | | ??????????????????????????????? ??# ##?? | | ??????????????????????????????## ## #???? | | ??????????????????????????????# #" #????? | | ??????????????????????????????# #????? | | ??????????????????????????????# #??????# | | ??????????????????????????????# #"" #??????# | | ????????????????????????????? ###" #????? | | ??????????????????????????? ???# ##???? | | ?????????????????????????" ????## ##?? | +----------------------------------------------------+ Best States ------------- Heat Dissipation 35 Energy Generation 10 Energy Capacity 250 Matter Stores 300 Matter Capacity 300 Sight Range 16 Terrain Scan Density 10 Evasion (%) 55 Item Schematics ----------------- None Robot Schematics ------------------ None Fabricated ------------ Nothing Repaired ---------- Nothing Studied --------- None Alien Tech Used ----------------- None Achievements -------------- For Emergencies Only Overwhelming There's More Where That Came From Challenges ------------ None Game ------ Seed ThunderSapperCoupler Manual? 0 Play Time 00:11:39 Cumulative 2.5 hours Start 2025.12.22 @ 00:41:00 End 2025.12.22 @ 00:58:43 Sessions 1 Manual Loads 0 Difficulty Rogue Special Mode None Game No. 7 Rogue 7 Adventurer 0 Explorer 0 Win Type - Total 0 Types 0/0/0/0/0/0/0/0/0/0 Lore% 1 Gallery% 4 Achievement% 8 Wizard Run 0 Options --------- Layout 1 ASCII 0 Keyboard 0 Movement Arrows Keybinds 0 Fullscreen 1 Font 16/SmallcapsGlow Map View 50x40 Zoom Use 0% Tactical HUD 1 Map Filters NONE Filters NONE Steam SD RUN: ab4d1d53-d348-48e7-a733-b3faee419512